[Event "Croatian 1A League 2022"]
[Site "Porec"]
[Date "2022.10.02"]
[Round "9.19"]
[White "Motylev, Alexander"]
[Black "Cheparinov, Ivan"]
[Result "1/2-1/2"]
[WhiteElo "2635"]
[BlackElo "2686"]
[Annotator "TA"]
[PlyCount "29"]
[EventDate "2022.09.24"]
[EventType "team-tourn"]
[EventCountry "CRO"]
[SourceTitle "playchess.com"]
[Source "ChessBase"]
[SourceQuality "1"]
[TimeControl "40/5400+30:1800+30"]

{[%evp 18,19,0,0]} 1. e4 {[%emt 0:00:03]} e5 {[%emt 0:00:03]} 2. Nf3 {[%emt 0:00:06]} Nc6 {[%emt 0:00:04]} 3. Nc3 {[%emt 0:00:07]} Nf6 {[%emt 0:00:05]} 4. d4 {[%emt 0:00:06]} exd4 {[%emt 0:00:04]} 5. Nxd4 {[%emt 0:00:07]} Bb4 {[%emt 0:00:03]} 6. Nxc6 {[%emt 0:00:12]} bxc6 {[%emt 0:00:04]} 7. Bd3 {[%emt 0:00:07]} d5 {[%emt 0:00:05]} 8. exd5 {[%emt 0:00:06]} cxd5 {[%emt 0:00:04] 8...0-0 is the fancy move.} 9. O-O {[%emt 0:00:08]} O-O {[%emt 0:00:05]} 10. Bg5 {[%emt 0:00:06] [#]} {Predecessor:} Be6 $146 {C47: Scotch Four Knights and Four Knights with 4 g3.} 11. Nb5 c5 12. a3 Ba5 13. b4 Bb6 14. bxc5 Bxc5 15. Qd2 {½-½ (15) Artemiev,V (2706)-Esipenko,A (2678) Cheboksary 2022} 1/2-1/2

[Event "Croatian 1A League 2022"]
[Site "Porec"]
[Date "2022.10.02"]
[Round "9.20"]
[White "Hracek, Zbynek"]
[Black "Postny, Evgeny"]
[Result "1/2-1/2"]
[ECO "C97"]
[WhiteElo "2556"]
[BlackElo "2573"]
[Annotator "TA"]
[PlyCount "43"]
[EventDate "2022.09.24"]
[EventType "team-tourn"]
[EventCountry "CRO"]
[SourceTitle "playchess.com"]
[Source "ChessBase"]
[SourceQuality "1"]
[TimeControl "40/5400+30:1800+30"]

{[%evp 22,23,42,19]} 1. e4 {[%emt 0:00:02]} e5 {[%emt 0:00:04]} 2. Nf3 {[%emt 0:00:02]} Nc6 {[%emt 0:00:05]} 3. Bb5 {[%emt 0:00:04]} a6 {[%emt 0:00:04]} 4. Ba4 {[%emt 0:00:04]} Nf6 {[%emt 0:00:03]} 5. O-O {[%emt 0:00:03]} Be7 {[%emt 0:00:05]} 6. Re1 {[%emt 0:00:03]} b5 {[%emt 0:00:05]} 7. Bb3 {[%emt 0:00:03]} d6 {[%emt 0:00:05]} 8. c3 {[%emt 0:00:02]} O-O {[%emt 0:00:06]} 9. h3 {[%emt 0:00:02]} Na5 {[%emt 0:00:08]} 10. Bc2 {[%emt 0:00:03]} c5 {[%emt 0:00:05]} 11. d4 {[%emt 0:00:02]} Qc7 {[%emt 0:00:05]} 12. Nbd2 {[%emt 0:00:02] [#]} {Predecessor:} Re8 $146 {C97: Closed Ruy Lopez: Chigorin Defence: 11 d4 Qc7, sidelines.} 13. Nf1 g6 14. Bg5 Nc4 15. b3 Nb6 16. Qd2 Bb7 17. Ng3 Nbd7 18. d5 Bf8 19. Rf1 Bg7 20. Bh6 Qd8 21. Nh2 Bxh6 22. Qxh6 {1-0 (48) Vidit,S (2723)-Rapport,R (2762) chess24.com INT 2022} 1/2-1/2

[Event "Croatian 1A League 2022"]
[Site "Porec"]
[Date "2022.10.02"]
[Round "9.24"]
[White "Mrkonjic, Nenad"]
[Black "Medancic, Rikard"]
[Result "1/2-1/2"]
[WhiteElo "2347"]
[BlackElo "2120"]
[Annotator "TA"]
[PlyCount "31"]
[EventDate "2022.09.24"]
[EventType "team-tourn"]
[EventCountry "CRO"]
[SourceTitle "playchess.com"]
[Source "ChessBase"]
[SourceQuality "1"]
[TimeControl "40/5400+30:1800+30"]

{[%evp 9,18,7,14,4,27,10,4,-1,0,0,0]} 1. d4 {[%emt 0:00:04]} Nf6 {[%emt 0:00:05]} 2. Nf3 {[%emt 0:00:06]} e6 {[%emt 0:00:05]} 3. Bf4 {[%emt 0:00:05]} d5 {[%emt 0:00:04]} 4. e3 {[%emt 0:00:06]} b6 {[%emt 0:00:05]} 5. Be2 {[%emt 0:00:07]} Bb7 {[%emt 0:00:08]} 6. O-O {[%emt 0:00:06] D02: 1 d4 d5 2 Nf3 sidelines, including 2...Nf6 3 g3 and 2...Nf6 3 Bf4.} Be7 {[%emt 0:00:04]} 7. h3 {[%emt 0:00:07]} O-O {[%emt 0:00:07] The position is equal.} 8. c3 {[%emt 0:00:07]} c5 {[%emt 0:00:07]} 9. Nbd2 {[%emt 0:00:07]} h6 {[%emt 0:00:06] [#] Not much happened in this game.  Weighted Error Value: White=0.08 (flawless) /Black=0.05 (flawless)} {Predecessor:} 10. Ne5 $146 Nbd7 11. Ndf3 Nxe5 12. Nxe5 Ne4 13. f3 Nf6 14. Bd3 Nd7 15. Bc2 Nxe5 16. Bxe5 {1-0 (37) Becker,W (1715)-Benicke,B (1558) Playchess.com INT 2020} 1/2-1/2

[Event "Croatian 1A League 2022"]
[Site "Porec"]
[Date "2022.10.02"]
[Round "9.26"]
[White "Erdos, Viktor"]
[Black "Martinovic, Sasa"]
[Result "1/2-1/2"]
[ECO "A12"]
[WhiteElo "2597"]
[BlackElo "2546"]
[Annotator "TA"]
[PlyCount "45"]
[EventDate "2022.09.24"]
[EventType "team-tourn"]
[EventCountry "CRO"]
[SourceTitle "playchess.com"]
[Source "ChessBase"]
[SourceQuality "1"]
[TimeControl "40/5400+30:1800+30"]

{[%evp 17,23,22,22,11,21,22,27,20]} 1. Nf3 {[%emt 0:00:02]} Nf6 {[%emt 0:00:04]} 2. b3 {[%emt 0:00:04]} d5 {[%emt 0:00:03]} 3. Bb2 {[%emt 0:00:04]} Bg4 {[%emt 0:00:02]} 4. e3 {[%emt 0:00:04]} Nbd7 {[%emt 0:00:05]} 5. Be2 {[%emt 0:00:05]} e6 {[%emt 0:00:03]} 6. c4 {[%emt 0:00:04]} c6 {[%emt 0:00:02]} 7. h3 {[%emt 0:00:05]} Bxf3 {[%emt 0:00:04]} 8. Bxf3 {[%emt 0:00:05]} Bd6 {[%emt 0:00:02]} 9. O-O {[%emt 0:00:09]} O-O {[%emt 0:00:04]} 10. d4 {[%emt 0:00:04] A12: English Opening: 1...c6 with b3 by White.} Qe7 {[%emt 0:00:05]} 11. Nc3 {[%emt 0:00:05]} a6 {[%emt 0:00:06]} 12. Qc2 {[%emt 0:00:04] [#] A rather calm draw.  Weighted Error Value: White=0.06 (flawless) /Black=0.05 (flawless)} {Predecessor:} Rac8 $146 13. e4 dxe4 14. Nxe4 Nxe4 15. Qxe4 Ba3 16. Bc3 Bb4 17. Qe1 Bxc3 18. Qxc3 Qa3 19. Rfe1 Rfd8 20. Rad1 h6 21. Re3 Rc7 22. Qd2 Qd6 23. b4 {½-½ (23) Rogers,I (2600)-Gyimesi,Z (2500) Germany 1997} 1/2-1/2

[Event "Croatian 1A League 2022"]
[Site "Porec"]
[Date "2022.10.02"]
[Round "9.28"]
[White "Trbojevic, Mladen"]
[Black "Kurajica, Bojan"]
[Result "1/2-1/2"]
[WhiteElo "2332"]
[BlackElo "2488"]
[Annotator "TA"]
[PlyCount "47"]
[EventDate "2022.09.24"]
[EventType "team-tourn"]
[EventCountry "CRO"]
[SourceTitle "playchess.com"]
[Source "ChessBase"]
[SourceQuality "1"]
[TimeControl "40/5400+30:1800+30"]

{[%evp 15,16,43,14]} 1. e4 {[%emt 0:00:08]} e5 {[%emt 0:00:15]} 2. Nf3 {[%emt 0:00:07]} Nc6 {[%emt 0:00:11]} 3. Bb5 {[%emt 0:00:10]} a6 {[%emt 0:00:21]} 4. Ba4 {[%emt 0:00:09]} Nf6 {[%emt 0:00:24]} 5. O-O {[%emt 0:01:01]} Be7 {[%emt 0:00:16]} 6. Re1 {[%emt 0:00:09]} b5 {[%emt 0:00:24]} 7. Bb3 {[%emt 0:00:07]} O-O {[%emt 0:00:08]} 8. c3 {[%emt 0:00:04]} d6 {[%emt 0:00:39] [#]} {Predecessor:} 9. d4 $146 {C91: Closed Ruy Lopez: 7...d6 8 c3 0-0 9 d4.} Bg4 10. d5 Na5 11. Bc2 c6 12. h3 Bc8 13. dxc6 Qc7 14. Nbd2 Qxc6 15. Nf1 Nc4 16. Ng3 Be6 17. Nh4 Rfc8 18. Nhf5 Bf8 19. Qf3 Ne8 20. Rd1 g6 21. b3 Nb6 22. Nh6+ Bxh6 23. Bxh6 Qxc3 24. Bd3 {0-1 (36) Kamsky,G (2655)-Le,Q (2722) Biel 2022} 1/2-1/2

[Event "Croatian 1A League 2022"]
[Site "Porec"]
[Date "2022.10.02"]
[Round "9.29"]
[White "Cvitan, Ognjen"]
[Black "Krstic, Uros"]
[Result "1/2-1/2"]
[WhiteElo "2445"]
[BlackElo "2323"]
[Annotator "TA"]
[PlyCount "44"]
[EventDate "2022.09.24"]
[EventType "team-tourn"]
[EventCountry "CRO"]
[SourceTitle "playchess.com"]
[Source "ChessBase"]
[SourceQuality "1"]
[TimeControl "40/5400+30:1800+30"]

{[%evp 18,19,0,7]} 1. Nf3 {[%emt 0:00:03]} Nf6 {[%emt 0:00:06]} 2. d4 {[%emt 0:00:07]} g6 {[%emt 0:00:04]} 3. c4 {[%emt 0:00:04]} Bg7 {[%emt 0:00:04]} 4. Nc3 {[%emt 0:00:05]} O-O {[%emt 0:00:04]} 5. e4 {[%emt 0:00:06]} d6 {[%emt 0:00:04]} 6. Be2 {[%emt 0:00:04]} e5 {[%emt 0:00:06]} 7. dxe5 {[%emt 0:00:03]} dxe5 {[%emt 0:00:02]} 8. Qxd8 {[%emt 0:00:05]} Rxd8 {[%emt 0:00:05]} 9. Bg5 {[%emt 0:00:03]} Re8 {[%emt 0:00:25]} 10. Nd5 {[%emt 0:00:05] [#]} {Predecessor:} Nxd5 $146 {E92: King's Indian: Classical: 6 Be2 e5: 7 dxe5, 7 Be3 and Petrosian System without 7...Nbd7.} 11. cxd5 c6 12. Bc4 b5 13. Bb3 a5 14. a4 bxa4 15. Bxa4 Bd7 16. dxc6 Bxc6 17. Ke2 Bxa4 18. Rxa4 Nc6 19. Rc1 Nd4+ 20. Kf1 Rab8 21. Rb1 Rb5 22. Nxd4 exd4 {½-½ (38) So,W (2776)-Firouzja,A (2804) Bucharest 2022} 1/2-1/2

[Event "Croatian 1A League 2022"]
[Site "Porec"]
[Date "2022.10.02"]
[Round "9.30"]
[White "Vernacki, Srdjan"]
[Black "Armanda, Ivica"]
[Result "1/2-1/2"]
[WhiteElo "2280"]
[BlackElo "2230"]
[Annotator "TA"]
[PlyCount "33"]
[EventDate "2022.09.24"]
[EventType "team-tourn"]
[EventCountry "CRO"]
[SourceTitle "playchess.com"]
[Source "ChessBase"]
[SourceQuality "1"]
[TimeControl "40/5400+30:1800+30"]

{[%evp 14,19,0,-30,6,-7,0,-8]} 1. Nf3 {[%emt 0:00:02]} Nf6 {[%emt 0:00:04]} 2. g3 {[%emt 0:00:02]} g6 {[%emt 0:00:04]} 3. Bg2 {[%emt 0:00:03]} Bg7 {[%emt 0:00:10]} 4. O-O {[%emt 0:00:04]} O-O {[%emt 0:00:08]} 5. c4 {[%emt 0:00:05]} d6 {[%emt 0:00:05]} 6. Nc3 {[%emt 0:00:04]} c5 {[%emt 0:00:05]} 7. d3 {[%emt 0:00:03]} Nc6 {[%emt 0:00:05]} 8. e4 {[%emt 0:00:05]} e5 {[%emt 0:00:08] is the legacy move (8...Bg4). A38: Symmetrical English vs ...g6: 4 Bg2 Bg7 5 Nf3 Nf6.} 9. h3 {[%emt 0:00:05] was the old line (9.a3).} a6 {[%emt 0:00:07]} 10. Be3 {[%emt 0:00:04] [#] Not much happened in this game.  Weighted Error Value: White=0.21 (precise) /Black=0.15 (very precise)} {Predecessor:} Nd4 $146 11. a4 Bd7 12. Rb1 Ne8 13. Nd5 f5 14. Bg5 Nxf3+ 15. Qxf3 Qxg5 16. b4 cxb4 17. Rxb4 {0-1 (28) Kalinin,A (2156)-Novikov,A (1615) Kolomna 2015} 1/2-1/2